bitfinex/quotes_ETHUSD_20251110
["timestamp","ask_amount","ask_price","bid_price","bid_amount"]
[1762751597633,0.4809,3620.6,3620.3,2.76220103]
[1762751597859,0.1376,3620.7,3620.3,2.76220103]
[1762751597860,0.25751287,3620.5,3620.3,2.76220103]
[1762751598031,0.25751287,3620.4,3620.2,2.76224864]
[1762751598231,0.1376,3620.7,3620.2,2.76224864]
[1762751598448,0.25752877,3620.6,3620.2,2.76224864]
[1762751598671,0.25752877,3620.5,3620.2,2.76224864]
[1762751598832,0.25752877,3620.4,3620.3,2.76220202]
[1762751600476,0.25752877,3620.4,3620.2,2.76225744]
[1762751600677,0.6185,3620.7,3620.2,2.76225744]
[1762751600977,0.25756133,3620.6,3620.2,2.76225744]
[1762751601183,0.4592,3620.3,3620.1,0.1376]
[1762751601387,0.4809,3620.6,3619.8,7.96889196]
[1762751601687,0.25758913,3620.5,3620.4,6.88101769]
[1762751601983,0.25758913,3620.5,3620.4,7.01861769]
[1762751602297,0.25758913,3620.5,3620.4,7.99670074]
[1762751604365,0.002,3620.6,3620.5,2.76204944]
[1762751604561,0.25968779,3620.6,3620.5,2.78966993]
[1762751604769,0.25968779,3620.6,3620.5,2.76204944]
[1762751605486,0.25968779,3620.6,3620.5,3.83792446]
[1762751611192,0.25968779,3620.6,3620.5,3.86554495]
[1762751611562,0.002,3620.6,3620.5,4.40864895]
[1762751611861,0.002,3620.6,3620.5,4.64071625]
[1762751614393,0.002,3620.6,3620.5,4.94856463]
[1762751615188,0.002,3620.6,3620.5,8.79856463]
[1762751617909,0.002,3620.6,3620.5,8.49071625]
[1762751619009,0.002,3620.6,3620.5,17.27836649]
[1762751619310,0.002,3620.6,3620.5,3.02173723]
[1762751619488,0.002,3620.6,3620.5,7.15587456]
[1762751619808,0.002,3620.6,3620.5,7.56137856]
[1762751624406,0.002,3620.6,3620.5,12.30171872]
[1762751624610,0.002,3620.6,3620.5,8.01842121]
[1762751624812,0.002,3620.6,3620.5,9.67778102]
[1762751625219,0.002,3620.6,3620.5,9.33126598]
[1762751629130,0.002,3620.6,3620.5,17.5750911]
[1762751629299,0.002,3620.6,3620.5,18.69764909]
[1762751630333,0.002,3620.6,3620.5,17.7126911]
[1762751630728,0.002,3620.6,3620.5,18.69923257]
[1762751630916,0.002,3620.6,3620.5,17.7126911]
[1762751631118,0.002,3620.6,3620.5,18.69924073]
[1762751631435,0.002,3620.6,3620.5,17.7126911]
[1762751631727,0.002,3620.6,3620.5,13.8626911]
[1762751631927,0.002,3620.6,3620.5,10.4555855]
[1762751632530,0.002,3620.6,3620.5,9.46886598]
[1762751633803,0.002,3620.6,3620.5,10.45584007]
[1762751634813,0.002,3620.6,3620.5,10.34531246]
[1762751636400,0.002,3620.6,3620.5,9.35833837]
[1762751637127,0.002,3620.6,3620.5,10.34546712]
[1762751638340,0.002,3620.6,3620.5,9.35833837]
[1762751638537,0.002,3620.6,3620.5,10.34589364]
[1762751638743,0.4798,3620.6,3620.5,3.88720471]
[1762751638927,0.9673,3620.6,3620.5,2.89964944]
[1762751639127,0.9673,3620.6,3620.5,7.29347456]
[1762751639828,0.9673,3620.6,3620.5,3.88720471]
[1762751640154,0.9673,3620.6,3620.5,2.89964944]
[1762751641341,0.9673,3620.6,3620.5,3.88720471]
[1762751641535,0.002,3620.6,3620.5,3.88720471]
[1762751641922,0.002,3620.6,3620.5,2.89964944]
[1762751642129,0.002,3620.6,3620.5,5.13919295]
[1762751642330,0.002,3620.6,3620.5,4.55714168]
[1762751643038,0.002,3620.6,3620.5,5.54406936]
[1762751643255,0.4798,3620.6,3620.5,5.54406936]
[1762751643610,0.9673,3620.6,3620.5,2.89964944]
[1762751643816,1.22607149,3620.6,3620.5,3.30515344]
[1762751644041,1.22607149,3620.6,3620.5,7.69897856]
[1762751645249,0.26077149,3620.6,3620.5,7.69897856]
[1762751645617,0.73857149,3620.6,3620.5,7.69897856]
[1762751645847,1.22607149,3620.6,3620.5,7.29347456]
[1762751646217,1.22600374,3620.6,3620.5,7.29347456]
[1762751647267,0.73850374,3620.6,3620.5,7.29347456]
[1762751647557,0.26070374,3620.6,3620.5,7.29347456]
[1762751648151,0.26070374,3620.6,3620.5,8.80323237]
[1762751648455,1.22600374,3620.6,3620.5,8.80323237]
[1762751648669,1.22600374,3620.6,3620.5,7.69897856]
[1762751649834,1.22600374,3620.6,3620.5,2.89964944]
[1762751654771,0.26070374,3620.6,3620.5,7.29347456]
[1762751655942,0.26070374,3620.6,3620.5,7.69897856]
[1762751656136,0.26070374,3620.6,3620.5,8.84378277]
[1762751656930,0.002,3620.6,3620.5,8.84378277]
[1762751659051,0.002,3620.6,3620.5,12.69378277]
[1762751659962,0.002,3620.6,3620.5,13.04023684]
[1762751660171,0.002,3620.6,3620.5,12.69378277]
[1762751666047,0.002,3620.6,3620.5,17.93693557]
[1762751666277,0.002,3620.6,3620.5,13.54311045]
[1762751668087,0.002,3620.6,3620.5,12.55618277]
[1762751668586,0.72768641,3620.6,3620.5,12.55618277]
[1762751668978,0.26078641,3620.6,3620.5,12.55618277]
[1762751670892,0.26078641,3620.6,3620.5,8.70618277]
[1762751671590,1.22608641,3620.6,3620.5,8.70618277]
[1762751672369,1.2261061,3620.6,3620.5,8.70618277]
[1762751676016,1.2261061,3620.6,3620.5,8.84378277]
[1762751676614,1.2261061,3620.6,3620.5,12.69378277]
[1762751678111,1.2261307,3620.6,3620.5,12.69378277]
[1762751678309,1.2261307,3620.6,3620.5,11.54897856]
[1762751680923,1.2261307,3620.6,3620.5,11.27523647]
[1762751681070,1.2261307,3620.6,3620.5,0.1376]
[1762751681275,1.2261307,3620.6,3620.0,3.851]
[1762751681501,0.7572307,3620.5,3620.3,2.76215746]
[1762751681690,0.2588307,3620.4,3620.2,2.76226182]
[1762751681870,1.2241307,3620.3,3620.2,2.76226182]
[1762751682480,1.2241307,3620.3,3620.0,7.97108303]
[1762751682686,0.002,3620.6,3620.3,2.76219698]
[1762751682885,0.25881542,3620.5,3620.3,2.76219698]
[1762751683086,0.72571542,3620.4,3620.3,2.76219698]
[1762751683295,1.22411542,3620.4,3620.3,2.76219698]
[1762751684232,1.22411542,3620.4,3620.0,7.97108303]
[1762751684409,0.4669,3620.1,3620.0,3.851]
[1762751684604,0.72571542,3620.1,3620.0,3.851]
[1762751684833,1.22411542,3620.1,3620.0,6.61343093]
[1762751685510,1.22411542,3620.1,3620.0,2.76343093]
[1762751688291,0.9653,3620.1,3620.0,2.76343093]
[1762751689245,0.002,3620.6,3620.5,2.76204944]
[1762751689450,1.23009792,3620.6,3620.5,2.76204944]
[1762751691242,1.23009792,3620.6,3620.5,2.89964944]
[1762751693230,1.23009792,3620.6,3620.5,2.92726993]
[1762751693540,0.73149792,3620.6,3620.5,2.92726993]
[1762751693838,0.26049792,3620.6,3620.5,3.90821888]
[1762751694031,0.73149792,3620.6,3620.5,3.90821888]
[1762751695206,1.20089792,3620.6,3620.5,3.88059839]
[1762751696539,0.73149792,3620.6,3620.5,3.88059839]
[1762751696907,0.26049792,3620.6,3620.5,3.88059839]
[1762751697118,0.26049792,3620.6,3620.5,4.28610239]
[1762751699943,0.26049792,3620.6,3620.5,4.75750239]
[1762751700452,1.19519792,3620.6,3620.5,8.73998542]
[1762751700854,0.72579792,3620.6,3620.5,1.45234895]
[1762751701152,0.0392,3620.0,3619.6,0.001]
[1762751701323,0.2232,3619.8,3619.6,0.001]
[1762751701523,2.76266609,3619.7,3619.2,0.001]
[1762751701744,1.259712,3619.3,3618.1,0.01]
[1762751701912,0.25849792,3619.2,3618.3,4.12008303]
[1762751702115,0.25849792,3619.1,3618.3,4.12008303]
[1762751702316,0.0105,3618.4,3618.1,0.01]
[1762751702517,0.0694,3618.2,3618.1,2.77385033]
[1762751702714,0.32749338,3618.2,3618.1,0.01]
[1762751702964,0.32749338,3618.2,3617.1,4.31978303]
[1762751702965,0.79689338,3618.2,3617.1,0.01]
[1762751703116,0.1912,3617.2,3617.1,0.01]
[1762751703316,0.44929338,3617.2,3617.1,0.01]
[1762751703553,0.91869338,3617.2,3617.1,0.01]
[1762751704132,9.06305769,3617.2,3617.1,0.01]
[1762751704323,2.76487754,3616.8,3616.1,0.01]
[1762751704548,0.2534,3616.2,3616.1,0.01]
[1762751704755,3.01873377,3616.2,3616.1,0.01]
[1762751704951,2.23950131,3616.2,3615.1,0.01]
[1762751705260,3.23139869,3615.2,3615.1,0.01]
[1762751705556,4.49111069,3615.2,3615.1,0.01]
[1762751705717,5.15174919,3615.2,3615.1,0.01]
[1762751707257,1.259712,3615.1,3614.3,0.14440525]
[1762751707461,0.1659,3614.4,3614.3,0.14440525]
[1762751707767,0.1659,3614.4,3614.1,0.01]
[1762751708065,1.259712,3614.0,3613.1,0.01]
[1762751708219,0.405504,3614.1,3612.2,0.4694]
[1762751708220,1.259712,3613.0,3612.2,0.4694]
[1762751708419,0.6442,3612.3,3612.1,0.01]
[1762751708643,0.4702,3612.2,3612.1,0.01]
[1762751709046,0.0008,3612.2,3612.1,0.01]
[1762751709260,0.4653,3612.2,3612.1,0.01]
[1762751710051,0.5491,3612.2,3612.1,0.01]
[1762751710735,0.0838,3612.8,3612.1,0.01]
[1762751710923,0.1789,3612.6,3612.2,0.30553637]
[1762751711127,0.1801,3613.5,3612.5,2.7680938]
[1762751711330,0.1801,3613.5,3613.3,2.76753169]
[1762751711525,2.76640981,3614.8,3612.6,3.08544924]
[1762751711526,0.01,3614.9,3612.6,0.81285978]
[1762751711765,0.4694,3614.8,3613.2,5.30083991]
[1762751712072,0.01,3614.9,3614.8,2.76640478]
[1762751712226,0.01,3614.9,3614.8,3.04304526]
[1762751712845,0.0898,3614.9,3614.7,2.76646639]
[1762751713050,0.0898,3614.9,3614.8,2.76640478]
[1762751713051,0.2509,3614.9,3614.8,2.76640478]
[1762751713771,0.2509,3614.9,3614.7,2.76646562]
[1762751714168,0.2509,3614.9,3614.8,2.76640478]
[1762751715159,0.01,3614.9,3614.8,3.83514072]
[1762751715552,0.01,3614.9,3614.8,4.73614472]
[1762751716154,0.01,3614.9,3614.5,0.4694]
[1762751716359,0.01,3614.9,3614.6,2.76655784]
[1762751716565,0.1719,3614.9,3614.5,0.4694]
[1762751716766,0.1719,3614.9,3613.4,0.36236551]
[1762751716767,0.4653,3614.6,3613.9,2.76702865]
[1762751716966,0.0008,3614.4,3613.9,2.76705591]
[1762751717288,0.4653,3614.0,3613.1,0.1897]
[1762751717493,0.4653,3614.0,3613.6,2.76731843]
[1762751717971,0.171,3613.9,3613.6,2.76731843]
[1762751718293,0.0008,3613.7,3613.2,0.27676849]
[1762751718481,0.171,3614.0,3613.1,0.1897]
[1762751718789,0.171,3614.3,3614.0,2.766952]
[1762751718993,0.171,3614.3,3613.3,1.32630514]
[1762751719202,0.171,3614.3,3613.4,0.15160051]
[1762751719410,0.171,3614.3,3614.1,2.7669325]
[1762751719562,0.171,3614.6,3613.8,0.405504]
[1762751719895,0.171,3614.6,3613.5,0.405504]
[1762751720097,0.171,3614.6,3614.3,2.76675323]
[1762751720609,0.1719,3614.9,3614.5,2.76662935]
[1762751720962,0.6413,3614.9,3614.5,2.76662935]
[1762751721166,0.0798,3614.6,3614.2,2.7667943]
[1762751721371,0.4653,3614.3,3614.2,2.7667943]
[1762751721871,0.4694,3614.8,3614.4,2.76671093]
[1762751722370,0.0798,3614.5,3614.4,2.76671093]
[1762751722774,0.1719,3614.9,3614.4,2.76671093]
[1762751722990,0.1719,3614.9,3614.1,0.4653]
[1762751723200,0.1719,3614.9,3614.6,2.76650458]
[1762751723911,0.1719,3614.9,3614.4,2.76669925]
[1762751723912,0.1719,3614.9,3614.1,3.60500068]
[1762751724075,0.1719,3614.9,3614.7,2.76644625]
[1762751724268,0.01,3614.9,3614.8,2.76640478]
[1762751727805,0.01,3614.9,3614.8,3.24570478]
[1762751728008,0.01,3614.9,3614.8,3.69890478]
[1762751728207,0.01,3614.9,3614.8,4.39435608]
[1762751728208,0.26509151,3614.9,3614.8,4.39435608]
[1762751728383,0.01,3614.9,3614.8,4.39435608]
[1762751729115,0.26595344,3614.9,3614.8,4.50508073]
[1762751729705,0.26595344,3614.9,3614.8,2.87712943]
[1762751731028,0.26595344,3614.9,3614.8,2.76640478]
[1762751731029,0.97295344,3614.9,3614.8,2.76640478]
[1762751732298,0.48705344,3614.9,3614.8,2.76640478]
[1762751732493,0.32615344,3614.9,3614.8,2.76640478]
[1762751732894,0.26595344,3614.9,3614.8,3.24570478]
[1762751733111,0.26595344,3614.9,3614.8,4.75730879]
[1762751733507,0.26595344,3614.9,3614.8,4.78497283]
[1762751733734,0.26595344,3614.9,3614.8,4.75730879]
[1762751735655,0.002,3615.2,3614.8,4.75730879]
[1762751735656,0.002,3615.2,3615.1,2.7661752]
[1762751735942,0.002,3615.2,3615.1,4.47091635]
[1762751736253,0.002,3615.2,3615.1,4.92411635]
[1762751739258,0.002,3615.2,3615.1,5.03482506]
[1762751741728,1e-08,3615.6,3615.5,3.17137317]
[1762751741929,0.002,3616.0,3615.9,3.1710672]
[1762751742144,0.002,3616.0,3615.9,10.49682329]
[1762751742359,0.002,3616.0,3615.9,12.88906346]
[1762751743676,0.002,3616.0,3615.9,13.06006346]
[1762751749548,0.002,3616.0,3615.9,13.42242897]
[1762751750150,0.002,3616.0,3615.9,13.06006346]
[1762751750346,0.01,3616.9,3616.8,3.17037902]
[1762751750586,0.01,3616.9,3616.8,10.21626101]
[1762751751090,0.01,3616.9,3616.8,9.76056101]
[1762751751385,0.01,3616.9,3616.8,10.02976101]
[1762751751681,0.01,3616.9,3616.8,9.57406101]
[1762751752047,0.01,3616.9,3616.8,10.32417154]
[1762751752260,0.01,3616.9,3616.8,10.77987154]
[1762751754182,0.01,3616.9,3616.8,10.32417154]
[1762751754750,0.01,3616.9,3616.8,10.79397154]
[1762751755066,0.01,3616.9,3616.8,10.04386101]
[1762751755686,0.01,3616.9,3616.8,9.57406101]
[1762751755890,0.01,3616.9,3616.8,13.42406101]
[1762751756186,0.01,3616.9,3616.8,13.89386101]
[1762751758172,0.012,3616.9,3616.8,13.89386101]
[1762751761575,0.0735,3616.9,3616.8,12.92416101]
[1762751761778,0.012,3616.9,3616.8,13.42336101]
[1762751762695,0.002,3617.3,3617.2,3.17007328]
[1762751762895,0.002,3617.3,3617.2,9.91191737]
[1762751763599,0.002,3617.3,3617.2,11.17162937]
[1762751764095,0.002,3617.3,3617.2,15.02162937]
[1762751764307,0.002,3617.3,3617.2,11.17162937]
[1762751764589,0.002,3617.3,3617.2,13.00362127]
[1762751764992,0.002,3617.3,3617.2,10.20531769]
[1762751765167,0.002,3617.3,3617.2,6.76097718]
[1762751767116,0.002,3617.3,3617.2,7.23077718]
[1762751770528,0.002,3617.3,3617.2,6.76097718]
[1762751771528,0.002,3617.3,3617.2,7.23077718]
[1762751772478,0.4555,3617.3,3617.2,5.00206518]
[1762751772717,0.4555,3617.3,3617.2,3.17007328]
[1762751773912,0.4555,3617.3,3617.2,2.76456928]
[1762751773913,0.551,3617.3,3617.2,2.76456928]
[1762751775657,0.551,3617.3,3616.5,2.7650891]
[1762751775835,0.002,3617.3,3617.2,2.76456928]
[1762751776215,0.71393392,3617.3,3617.0,2.76466985]
[1762751776420,0.4499,3617.1,3616.6,0.405504]
[1762751776629,0.4499,3617.1,3617.0,2.76472214]
[1762751776950,0.549,3617.1,3617.0,2.76472214]
[1762751777353,0.549,3617.1,3616.9,0.001]
[1762751777562,0.002,3617.3,3617.1,2.76463979]
[1762751777741,0.71198894,3617.2,3617.1,2.76463979]
[1762751778119,0.80748894,3617.2,3617.1,2.76463979]
[1762751778553,0.80748894,3617.2,3616.9,2.76579236]
[1762751778554,0.80748894,3617.2,3616.9,0.001]
[1762751778739,0.74628894,3617.1,3616.9,0.001]
[1762751778938,0.31998894,3617.0,3616.9,0.001]
[1762751779141,0.80358894,3617.0,3616.9,0.001]
[1762751779663,0.31998894,3617.0,3616.9,2.76579858]
[1762751780031,0.80358894,3617.0,3616.9,2.76579858]
[1762751781357,0.80358894,3617.0,3616.9,2.56579858]
[1762751781555,0.80358894,3617.0,3616.5,0.001]
[1762751781759,0.002,3617.3,3616.5,0.001]
[1762751781760,0.91728894,3616.9,3616.8,2.76486447]
[1762751782151,0.97878894,3616.9,3616.8,2.76486447]
[1762751783026,0.97878894,3616.9,3616.5,0.001]
[1762751783224,0.0615,3616.6,3616.5,2.76610438]
[1762751784726,0.6546,3616.9,3616.8,2.76487502]
[1762751785027,0.2368,3616.9,3616.8,2.76487502]
[1762751785260,0.002,3617.3,3617.2,2.76456928]
[1762751785459,0.002,3617.3,3617.2,3.47191497]
[1762751785628,0.002,3617.3,3617.2,3.44426928]
[1762751786055,0.002,3617.3,3617.2,3.26366928]
[1762751787129,0.0966,3617.3,3617.2,2.76456928]
[1762751787627,0.5475,3617.3,3617.2,2.76456928]
[1762751787825,0.5475,3617.3,3616.5,1.260712]
[1762751788088,0.4529,3617.3,3616.5,0.001]
[1762751788227,0.4529,3617.3,3616.7,2.76488599]
[1762751788759,0.2674,3616.8,3616.5,2.76610209]
[1762751788971,0.2692,3616.6,3616.5,0.001]
[1762751789146,0.2692,3616.6,3616.5,2.76609442]
[1762751790940,0.7165,3616.6,3616.5,0.001]
[1762751793775,0.9745089,3616.6,3616.5,0.001]
[1762751794276,0.7165,3616.6,3616.5,0.001]
[1762751794685,0.97448332,3616.6,3616.5,0.001]
[1762751794888,4.99922324,3616.6,3616.5,0.001]
[1762751796259,0.97448332,3616.6,3616.5,0.001]
[1762751796773,2.23419532,3616.6,3616.5,0.001]
[1762751796987,4.99922324,3616.6,3616.5,0.001]
[1762751797649,0.97448332,3616.6,3616.5,0.001]
[1762751799681,2.23419532,3616.6,3616.5,0.001]
[1762751799876,3.73951124,3616.6,3616.5,0.001]
[1762751801423,0.97448332,3616.6,3616.5,0.001]
[1762751801624,2.23419532,3616.6,3616.5,0.001]
[1762751802533,0.52718332,3616.6,3616.5,0.001]
[1762751802683,0.002,3617.0,3616.5,0.001]
[1762751802684,0.002,3617.0,3616.5,0.5001]
[1762751802885,0.002,3617.0,3616.9,3.26389858]
[1762751803105,0.002,3617.0,3616.9,4.37290229]
[1762751808645,0.002,3617.0,3616.9,3.91530229]
[1762751808844,0.002,3617.0,3616.9,2.76479858]
[1762751809038,0.0966,3617.0,3616.5,0.001]
[1762751809742,0.0966,3617.0,3616.7,2.76491704]
[1762751809743,0.5475,3617.0,3616.7,2.76491704]
[1762751810245,0.25812381,3616.9,3616.5,0.001]
[1762751810407,0.002,3617.0,3616.9,2.76479858]
[1762751810615,0.002,3617.0,3616.9,3.24859858]
[1762751810846,0.002,3617.0,3616.9,4.38994359]
[1762751812849,0.002,3617.0,3616.9,4.79544759]
[1762751814859,0.002,3617.0,3616.9,4.30454759]
[1762751815156,0.002,3617.0,3616.9,3.65410258]
[1762751815514,0.002,3617.0,3616.9,3.17030258]
[1762751815756,0.002,3617.0,3616.9,2.76479858]
[1762751816057,0.0689,3617.0,3616.9,2.76479858]
[1762751816637,0.002,3617.0,3616.9,3.26219858]
[1762751816851,0.002,3617.0,3616.9,3.91265359]
[1762751817027,0.002,3617.0,3616.9,4.79555759]
[1762751820539,0.002,3617.0,3616.9,3.26219858]
[1762751820849,0.002,3617.0,3616.9,4.14510258]
[1762751823354,0.002,3617.0,3616.9,4.55590773]
[1762751823663,0.002,3617.0,3616.9,5.89860361]
[1762751823975,0.002,3617.0,3616.9,5.51544644]
[1762751824165,0.002,3617.0,3616.9,7.58799034]
[1762751824461,0.01,3619.9,3617.7,0.405504]
[1762751824681,0.4831,3619.4,3618.8,0.4974]
[1762751824829,0.4831,3619.4,3618.8,2.76334696]
[1762751824830,0.1789,3619.2,3618.8,2.76334696]
[1762751825029,0.0762,3618.9,3618.8,2.76334696]
[1762751825229,0.01,3618.9,3618.8,3.26074696]
[1762751825461,0.01,3618.9,3618.8,3.73814696]
[1762751825928,0.01,3618.9,3618.8,3.26074696]
[1762751827364,0.01,3618.9,3618.8,4.35929534]
[1762751829986,0.01,3618.9,3618.8,4.76479934]
[1762751830137,0.01,3618.9,3618.8,4.7924328]
[1762751830364,0.01,3618.9,3618.8,6.0521448]
[1762751830677,1e-08,3618.9,3618.8,6.19481134]
[1762751831715,0.01,3619.9,3619.8,3.16808756]
[1762751831917,0.01,3619.9,3619.8,8.98755198]
[1762751832203,0.01,3619.9,3619.8,10.69703815]
[1762751832377,0.01,3619.9,3619.8,10.80758317]
[1762751833509,0.01,3619.9,3619.8,4.92519956]
[1762751833803,0.01,3619.9,3619.8,3.16808756]
[1762751833997,0.01,3619.9,3619.8,3.66548756]
[1762751835105,0.01,3619.9,3619.8,3.16808756]
[1762751835605,0.7341,3619.9,3619.5,2.7627507]
[1762751835782,0.6709,3619.9,3619.5,2.76274096]
[1762751836607,0.6709,3619.9,3619.6,2.76271975]
[1762751837110,0.6709,3619.9,3619.1,0.1873]
[1762751837111,0.0673,3619.7,3619.1,0.1873]
[1762751837403,0.1878,3619.9,3619.2,0.405504]
[1762751837610,0.1878,3619.9,3619.5,2.76276046]
[1762751837787,0.1878,3619.9,3619.6,2.76272643]
[1762751838710,0.1878,3619.9,3619.7,2.76265806]
[1762751838881,0.1878,3619.9,3619.7,2.76264348]
[1762751839205,0.01,3619.9,3619.7,2.76264348]
[1762751839582,0.01,3619.9,3619.2,0.882904]
[1762751839583,0.01,3619.9,3619.8,2.79020939]
[1762751841086,0.01,3619.9,3619.8,3.25998356]
[1762751842010,0.01,3619.9,3619.8,4.79289319]
[1762751842310,0.01,3619.9,3619.8,4.31549319]
[1762751842884,0.01,3619.9,3619.4,8.05729786]
[1762751842885,0.2551,3619.9,3619.2,0.4774]
[1762751843214,0.1889,3619.9,3619.3,0.405504]
[1762751843571,0.01,3619.9,3619.8,2.76258356]
[1762751844219,0.01,3619.9,3619.8,4.69541308]
[1762751844428,0.0762,3619.9,3619.8,3.72061308]
[1762751844717,0.0762,3619.9,3619.3,0.405504]
[1762751845074,0.0762,3619.9,3619.4,2.76288887]
[1762751845277,0.0762,3619.9,3619.7,2.76265465]
[1762751845718,0.01,3619.9,3619.8,2.76258356]
[1762751846225,0.0803,3619.9,3619.3,0.405504]
[1762751846525,0.01,3619.9,3619.8,2.76258356]
[1762751847486,0.01,3619.9,3619.6,2.76267089]
[1762751847810,0.01,3619.9,3619.8,2.76258356]
[1762751848328,0.0792,3619.9,3619.8,2.76258356]
[1762751848832,0.01,3619.9,3619.8,3.23458356]
[1762751850208,0.01,3619.9,3619.8,2.76258356]
[1762751850396,0.0853,3619.9,3619.8,2.76258356]
[1762751851399,0.012,3619.9,3619.8,2.76258356]
[1762751852316,0.012,3619.9,3619.8,3.23458356]
[1762751853158,0.012,3619.9,3619.8,3.73790939]
[1762751853462,0.2699053,3619.9,3619.8,3.71028356]
[1762751853755,0.012,3619.9,3619.8,3.71028356]
[1762751853955,0.26988965,3619.9,3619.8,3.71028356]
[1762751854162,0.33908965,3619.9,3619.8,2.76258356]
[1762751855736,0.33908965,3619.9,3619.5,3.16827779]
[1762751855946,0.25788965,3619.8,3619.7,2.76265988]
[1762751859225,6.25788965,3619.8,3619.7,2.76265988]
[1762751859729,6.25788965,3619.8,3619.7,3.23465988]
[1762751862692,6.0,3619.8,3619.7,10.51132625]
[1762751864126,0.012,3619.9,3619.5,1.20786095]
[1762751864255,0.012,3619.9,3619.8,3.13208356]
[1762751864595,0.012,3619.9,3619.8,3.51081097]
[1762751864789,0.012,3619.9,3619.8,4.41443369]
[1762751865991,0.012,3619.9,3619.8,4.81993769]
[1762751867562,0.012,3619.9,3619.8,4.81071028]
[1762751867985,0.012,3619.9,3619.8,4.44121028]
[1762751868514,1.38013514,3619.9,3619.8,2.76258356]
[1762751869517,1.38013514,3619.9,3619.2,0.887604]
[1762751869721,0.25874956,3619.8,3619.7,2.76263923]
[1762751870023,0.25874956,3619.8,3619.2,0.405504]
[1762751870024,0.457,3619.3,3619.2,2.76304155]
[1762751870390,0.4642,3619.7,3619.6,2.76270451]
[1762751870593,0.72294374,3619.7,3619.6,2.76270451]
[1762751870818,0.72294374,3619.7,3618.9,0.3705]
[1762751870819,1.17994374,3619.7,3619.1,0.405504]
[1762751871010,0.25874374,3619.6,3619.5,2.76279947]
[1762751871489,1.17994374,3619.6,3619.5,2.76279947]
[1762751871692,1.17994374,3619.6,3619.0,5.44107132]
[1762751871886,0.72294374,3619.5,3619.3,2.76289754]
[1762751872105,0.4642,3619.5,3619.4,2.76288887]
[1762751872424,0.72291505,3619.5,3619.4,2.76288887]
[1762751872624,1.17991505,3619.5,3618.9,0.001]
[1762751872921,0.2002,3619.9,3619.2,2.76302939]
[1762751872922,0.72291505,3619.4,3619.2,2.76302939]
[1762751873093,0.25871505,3619.3,3619.2,2.76299515]
[1762751873290,0.9212,3619.3,3619.2,2.76299515]
[1762751873486,0.9212,3619.3,3619.1,2.76308339]
[1762751873725,0.4642,3619.2,3619.1,2.76308339]
[1762751873920,0.9212,3619.2,3619.1,2.76308339]
[1762751874428,0.9212,3619.2,3618.9,0.001]
[1762751874629,0.2002,3619.9,3618.9,0.001]
[1762751874630,0.457,3619.0,3618.9,0.001]
[1762751874816,0.71565908,3619.0,3618.9,0.001]
[1762751875017,1.18475908,3619.0,3618.9,0.001]
[1762751879933,1.18475908,3619.0,3618.9,2.7642706]
[1762751879934,0.457,3619.0,3618.9,2.7642706]
[1762751880331,0.4691,3619.6,3619.1,2.76304201]
[1762751880533,0.4691,3619.6,3618.9,0.3705]
[1762751880534,0.4955,3619.2,3618.9,2.76424858]
[1762751880736,0.4955,3619.0,3618.9,2.7642706]
[1762751881026,0.4955,3619.0,3618.9,0.001]
[1762751881352,0.4955,3619.0,3618.9,2.7642706]
[1762751882273,0.2002,3619.9,3618.9,0.95090176]
[1762751882556,0.25789176,3619.8,3619.5,2.76276033]
[1762751882722,0.6693,3619.9,3619.6,2.76272453]
[1762751882938,0.4955,3619.7,3619.6,2.76266282]
[1762751883367,0.6693,3619.9,3619.6,2.76266282]
[1762751883566,0.6693,3619.9,3619.1,0.82935358]
[1762751883763,0.6693,3619.9,3619.2,0.8711891]
[1762751883941,0.6693,3619.9,3619.8,2.76258356]
[1762751884163,0.92716245,3619.9,3619.8,2.76258356]
[1762751884360,0.76536245,3619.9,3619.7,2.76263376]
[1762751884559,0.5075,3619.9,3619.7,2.76263376]
[1762751884866,0.4955,3619.8,3619.7,2.76263376]
[1762751886380,0.4811,3619.9,3619.7,2.76263376]
[1762751886381,0.012,3619.9,3619.8,2.76258356]
[1762751887185,0.012,3619.9,3619.5,0.1813]
[1762751887353,0.012,3619.9,3619.8,2.76258356]
[1762751887897,1.23447616,3619.9,3619.0,0.001]
[1762751888196,0.4955,3619.7,3619.0,0.001]
[1762751888352,0.4955,3619.7,3619.4,2.76281866]
[1762751888547,0.4955,3619.7,3619.0,0.406504]
[1762751888753,0.4955,3619.7,3619.5,2.76276467]
[1762751888947,0.4955,3619.7,3619.6,2.76273621]
[1762751889151,0.012,3619.9,3619.7,2.76264818]
[1762751889386,0.012,3619.9,3619.0,3.53915829]
[1762751889387,0.4955,3619.8,3619.6,2.7626624]
[1762751889758,0.4955,3619.7,3619.6,2.7626624]
[1762751890355,0.4955,3619.7,3619.5,2.76278265]
[1762751890578,0.4955,3619.7,3619.6,2.76273621]
[1762751891081,0.4955,3619.7,3619.2,0.4955]
[1762751891381,0.4955,3619.7,3619.5,2.76277514]
[1762751891583,0.4955,3619.6,3619.5,2.76277514]
[1762751892167,0.4955,3619.6,3619.2,0.4955]
[1762751892376,0.012,3619.9,3619.5,2.76281254]
[1762751892577,0.012,3619.9,3619.8,2.76258356]
[1762751892776,0.012,3619.9,3619.3,0.405504]
[1762751892965,0.012,3619.9,3619.8,2.76258356]
[1762751893787,0.012,3619.9,3619.8,3.13208356]
[1762751894488,0.012,3619.9,3619.8,3.90708756]
[1762751894689,0.012,3619.9,3619.8,4.08838756]
[1762751895187,0.012,3619.9,3619.8,3.71888756]
[1762751895385,0.012,3619.9,3619.8,4.96182445]
[1762751897592,0.002,3620.3,3619.8,7.02788969]
[1762751897792,0.002,3620.3,3620.2,9.2977914]
[1762751898024,0.002,3620.3,3620.2,10.99373081]
[1762751898229,0.002,3620.3,3620.2,13.53423586]
[1762751898646,0.002,3620.3,3620.2,13.64475645]
[1762751905652,0.002,3620.3,3620.2,6.85521596]